bitfinex-derivatives/quotes_SOLF0:USTF0_20251026
["timestamp","ask_amount","ask_price","bid_price","bid_amount"]
[1761445488083,3.99845948,192.71,192.64,2.61]
[1761445488284,3.99845948,192.72,192.64,2.61]
[1761445488482,3.99845948,192.71,192.64,2.61]
[1761445488684,3.99845948,192.72,192.64,2.61]
[1761445488882,3.99845948,192.71,192.64,2.61]
[1761445489086,3.99845948,192.74,192.64,2.61]
[1761445489385,3.99845948,192.73,192.64,2.61]
[1761445489585,3.99845948,192.72,192.64,2.61]
[1761445489784,3.99845948,192.71,192.64,2.61]
[1761445489985,3.99845948,192.7,192.64,2.61]
[1761445490193,3.99845948,192.74,192.64,2.61]
[1761445490389,3.99845948,192.73,192.64,2.61]
[1761445490581,3.99845948,192.72,192.64,2.61]
[1761445490785,3.99845948,192.71,192.64,2.61]
[1761445490989,3.99845948,192.7,192.64,2.61]
[1761445491187,7.18931169,192.75,192.64,2.61]
[1761445491485,4.00320457,192.74,192.64,2.61]
[1761445491685,4.00320457,192.73,192.64,2.61]
[1761445491996,4.00320457,192.72,192.64,2.61]
[1761445492185,4.00320457,192.71,192.64,2.61]
[1761445492495,4.00320457,192.7,192.64,2.61]
[1761445492788,4.81890295,192.74,192.64,2.61]
[1761445492975,4.00424273,192.73,192.64,2.61]
[1761445493173,4.00424273,192.72,192.64,2.61]
[1761445493387,4.00424273,192.71,192.64,2.61]
[1761445493686,4.00424273,192.7,192.64,2.61]
[1761445493888,4.81890295,192.74,192.64,2.61]
[1761445494082,4.00428585,192.73,192.64,2.61]
[1761445494286,4.00428585,192.72,192.64,2.61]
[1761445494490,4.00428585,192.71,192.64,2.61]
[1761445494685,4.00428585,192.7,192.64,2.61]
[1761445494989,4.81890295,192.74,192.64,2.61]
[1761445495178,4.0042619,192.73,192.64,2.61]
[1761445495384,4.0042619,192.72,192.64,2.61]
[1761445495685,4.81890295,192.74,192.64,2.61]
[1761445495686,4.0042619,192.71,192.64,2.61]
[1761445495888,4.0042619,192.7,192.64,2.61]
[1761445496081,4.81890295,192.74,192.64,2.61]
[1761445496279,4.00491742,192.73,192.64,2.61]
[1761445496584,4.00491742,192.72,192.64,2.61]
[1761445496783,4.00491742,192.71,192.64,2.61]
[1761445497088,4.00491742,192.7,192.64,2.61]
[1761445497289,4.81890295,192.74,192.64,2.61]
[1761445497489,4.00525767,192.73,192.64,2.61]
[1761445497787,4.00525767,192.72,192.64,2.61]
[1761445497986,4.00525767,192.71,192.64,2.61]
[1761445498187,4.00525767,192.7,192.64,2.61]
[1761445498486,4.00525767,192.69,192.64,2.61]
[1761445498687,4.81890295,192.74,192.64,2.61]
[1761445498886,4.00565932,192.73,192.64,2.61]
[1761445499087,4.81890295,192.74,192.64,2.61]
[1761445499088,4.00565932,192.72,192.64,2.61]
[1761445499283,4.00565932,192.71,192.64,2.61]
[1761445499585,4.00565932,192.7,192.64,2.61]
[1761445499785,4.00565932,192.69,192.64,2.61]
[1761445499992,4.81890295,192.74,192.64,2.61]
[1761445500190,4.00565036,192.73,192.64,2.61]
[1761445500391,4.00565036,192.72,192.64,2.61]
[1761445500681,4.00565036,192.71,192.64,2.61]
[1761445500985,4.00565036,192.7,192.64,2.61]
[1761445501181,4.00565036,192.69,192.64,2.61]
[1761445501376,4.81890295,192.74,192.64,2.61]
[1761445501583,8.82570162,192.73,192.64,2.61]
[1761445501781,4.00679867,192.72,192.64,2.61]
[1761445501982,11.19611036,192.71,192.61,2.86]
[1761445502190,13.21658053,192.7,192.61,2.86]
[1761445502379,4.00679867,192.69,192.61,2.86]
[1761445502583,4.00679867,192.68,192.61,2.86]
[1761445502778,4.00679867,192.67,192.61,2.86]
[1761445502983,4.00679867,192.66,192.61,2.86]
[1761445503293,4.00679867,192.65,192.61,2.86]
[1761445503590,4.81890295,192.7,192.61,2.86]
[1761445503792,4.00252821,192.69,192.61,2.86]
[1761445503990,4.00252821,192.68,192.61,2.86]
[1761445504194,4.00252821,192.67,192.61,2.86]
[1761445504392,4.00252821,192.66,192.61,2.86]
[1761445504592,4.81890295,192.7,192.61,2.86]
[1761445504792,4.00248409,192.69,192.61,2.86]
[1761445504992,4.00248409,192.68,192.61,2.86]
[1761445505204,4.00248409,192.67,192.61,2.86]
[1761445505492,4.00248409,192.66,192.61,2.86]
[1761445505694,4.00233583,192.65,192.61,2.86]
[1761445505889,4.81890295,192.69,192.61,2.86]
[1761445506090,4.00234472,192.68,192.61,2.86]
[1761445506295,4.00234472,192.67,192.61,2.86]
[1761445506498,4.81890295,192.72,192.61,2.86]
[1761445506694,4.00318519,192.71,192.61,2.86]
[1761445506995,4.00318519,192.7,192.61,2.86]
[1761445507192,4.00318519,192.69,192.61,2.86]
[1761445507395,4.00318519,192.68,192.61,2.86]
[1761445507594,4.00318519,192.67,192.61,2.86]
[1761445507895,4.81890295,192.71,192.61,2.86]
[1761445508092,4.00275335,192.7,192.61,2.86]
[1761445508296,4.81890295,192.71,192.61,2.86]
[1761445508297,4.00275335,192.69,192.61,2.86]
[1761445508594,4.00275335,192.68,192.61,2.86]
[1761445508794,4.00275335,192.67,192.61,2.86]
[1761445509095,4.81890295,192.71,192.61,2.86]
[1761445509296,4.00231126,192.7,192.61,2.86]
[1761445509499,4.00231126,192.69,192.61,2.86]
[1761445509799,4.00231126,192.68,192.61,2.86]
[1761445509992,4.81890295,192.72,192.61,2.86]
[1761445510292,8.77041624,192.75,192.61,2.86]
[1761445510293,4.0024807,192.71,192.61,2.86]
[1761445510496,4.0024807,192.7,192.61,2.86]
[1761445510697,4.0024807,192.69,192.61,2.86]
[1761445510897,4.81890295,192.73,192.61,2.86]
[1761445511098,4.00276395,192.72,192.61,2.86]
[1761445511302,4.00276395,192.71,192.61,2.86]
[1761445511597,4.00276395,192.7,192.61,2.86]
[1761445511792,4.00276395,192.69,192.61,2.86]
[1761445511994,4.81890295,192.74,192.61,5.23040874]
[1761445512195,4.00341632,192.73,192.62,2.68]
[1761445512401,4.81890295,192.77,192.66,2.68]
[1761445512601,4.00373283,192.76,192.66,2.68]
[1761445512801,4.00373283,192.75,192.66,2.68]
[1761445513001,4.00373283,192.74,192.66,2.68]
[1761445513203,4.81890295,192.78,192.66,2.68]
[1761445513504,4.00307794,192.77,192.66,2.68]
[1761445513702,4.00307794,192.76,192.66,2.68]
[1761445513904,4.00307794,192.75,192.66,2.68]
[1761445514106,4.00307794,192.74,192.66,2.68]
[1761445514294,4.81890295,192.78,192.66,2.68]
[1761445514496,4.00244025,192.77,192.66,2.68]
[1761445514691,4.00244025,192.76,192.66,2.68]
[1761445514896,4.00244025,192.75,192.66,2.68]
[1761445515102,4.00244025,192.74,192.66,2.68]
[1761445515301,7.18931169,192.79,192.66,2.68]
[1761445515608,4.00099818,192.78,192.66,2.68]
[1761445515906,4.00099818,192.77,192.66,2.68]
[1761445516203,4.00099818,192.76,192.66,2.68]
[1761445516403,4.81890295,192.79,192.66,2.68]
[1761445516404,4.00099818,192.75,192.66,2.68]
[1761445516604,4.00099818,192.74,192.66,2.68]
[1761445516806,4.81890295,192.79,192.66,2.68]
[1761445517107,4.00032351,192.78,192.66,2.68]
[1761445517300,4.00032351,192.77,192.66,2.68]
[1761445517500,4.00032351,192.76,192.66,2.68]
[1761445517699,4.00032351,192.75,192.66,2.68]
[1761445517902,4.00032351,192.74,192.66,2.68]
[1761445518201,4.81890295,192.79,192.66,2.68]
[1761445518406,3.99932647,192.78,192.66,2.68]
[1761445518706,3.99932647,192.77,192.66,2.68]
[1761445518902,3.99932647,192.76,192.66,2.68]
[1761445519102,3.99932647,192.75,192.66,2.68]
[1761445519304,4.81890295,192.79,192.66,2.68]
[1761445519501,3.99887305,192.78,192.66,2.68]
[1761445519699,4.81890295,192.79,192.66,2.68]
[1761445519700,3.99887305,192.77,192.66,2.68]
[1761445519899,3.99887305,192.76,192.66,2.68]
[1761445520098,3.99887305,192.75,192.66,2.68]
[1761445520299,4.81890295,192.79,192.66,2.68]
[1761445520502,3.99868119,192.78,192.66,2.68]
[1761445520696,3.99868119,192.77,192.66,2.68]
[1761445520904,3.99868119,192.76,192.66,2.68]
[1761445521106,3.99868119,192.75,192.66,2.68]
[1761445521304,4.81890295,192.79,192.66,2.68]
[1761445521511,3.99905913,192.78,192.66,2.68]
[1761445521701,3.99905913,192.77,192.66,2.68]
[1761445521901,3.99905913,192.76,192.66,2.68]
[1761445522102,3.99905913,192.75,192.66,2.68]
[1761445522400,4.81890295,192.79,192.66,2.68]
[1761445522599,3.9987378,192.78,192.66,2.68]
[1761445522910,3.9987378,192.77,192.66,2.68]
[1761445523105,3.9987378,192.76,192.66,2.68]
[1761445523408,3.9987378,192.75,192.66,2.68]
[1761445523706,3.99885245,192.78,192.66,2.68]
[1761445523909,3.99885245,192.77,192.66,2.68]
[1761445524108,3.99885245,192.76,192.66,2.68]
[1761445524311,3.99885245,192.79,192.66,2.68]
[1761445524612,3.99885245,192.78,192.66,2.68]
[1761445524802,3.99885245,192.77,192.66,2.68]
[1761445525004,3.99885245,192.76,192.66,2.68]
[1761445525203,3.99885245,192.8,192.66,2.68]
[1761445525404,3.99885245,192.79,192.66,2.68]
[1761445525609,3.99885245,192.78,192.66,2.68]
[1761445525811,3.99885245,192.77,192.66,2.68]
[1761445526106,3.99885245,192.76,192.66,2.68]
[1761445526411,3.99885245,192.8,192.66,2.68]
[1761445526612,3.99885245,192.79,192.66,2.68]
[1761445526912,3.99885245,192.78,192.66,2.68]
[1761445527102,3.99885245,192.77,192.66,2.68]
[1761445527307,3.99885245,192.76,192.66,2.68]
[1761445527516,3.99885245,192.8,192.66,2.68]
[1761445527813,3.99885245,192.79,192.66,2.68]
[1761445528012,3.99885245,192.78,192.66,2.68]
[1761445528213,3.99885245,192.77,192.66,2.68]
[1761445528415,3.99885245,192.8,192.66,2.68]
[1761445528614,3.99885245,192.79,192.66,2.68]
[1761445528816,3.99885245,192.78,192.66,2.68]
[1761445529009,3.99885245,192.77,192.66,2.68]
[1761445529210,3.99885245,192.8,192.66,2.68]
[1761445529410,3.99885245,192.79,192.66,2.68]
[1761445529715,3.99885245,192.78,192.66,2.68]
[1761445530015,3.99885245,192.77,192.66,2.68]
[1761445530211,3.99885245,192.8,192.66,2.68]
[1761445530415,3.99885245,192.79,192.66,2.68]
[1761445530616,3.99885245,192.78,192.66,2.68]
[1761445530815,3.99885245,192.77,192.66,2.68]
[1761445531016,3.99885245,192.8,192.66,2.68]
[1761445531218,3.99885245,192.79,192.66,2.68]
[1761445531418,3.99885245,192.78,192.66,2.68]
[1761445531620,3.99885245,192.77,192.66,2.68]
[1761445531811,3.99885245,192.8,192.66,2.68]
[1761445532007,3.99885245,192.79,192.66,2.68]
[1761445532211,3.99885245,192.78,192.66,2.68]
[1761445532417,3.99885245,192.77,192.66,2.68]
[1761445532620,3.99885245,192.8,192.66,2.68]
[1761445532817,7.18931169,192.81,192.66,2.68]
[1761445532818,3.99885245,192.79,192.66,2.68]
[1761445533017,3.99885245,192.78,192.66,2.68]
[1761445533212,3.99885245,192.77,192.66,2.68]
[1761445533417,3.99885245,192.8,192.66,2.68]
[1761445533715,3.99885245,192.79,192.66,2.68]
[1761445533917,3.99885245,192.78,192.66,2.68]
[1761445534119,3.99885245,192.77,192.66,2.68]
[1761445534421,3.99885245,192.8,192.66,2.68]
[1761445534621,3.99885245,192.79,192.66,2.68]
[1761445534824,3.99885245,192.78,192.66,2.68]
[1761445535120,3.99885245,192.77,192.66,2.68]
[1761445535322,3.99885245,192.8,192.66,2.68]
[1761445535515,3.99885245,192.79,192.66,2.68]
[1761445535718,3.99885245,192.78,192.67,2.68]
[1761445536021,3.99885245,192.77,192.67,2.68]
[1761445536216,3.99885245,192.8,192.67,2.68]
[1761445536420,3.99885245,192.79,192.67,2.68]
[1761445536619,3.99885245,192.78,192.67,2.68]
[1761445536808,3.99885245,192.77,192.67,2.68]
[1761445537013,3.99885245,192.8,192.67,2.68]
[1761445537214,3.99885245,192.79,192.67,2.68]
[1761445537422,3.99885245,192.78,192.67,2.68]
[1761445537619,3.99885245,192.77,192.67,2.68]
[1761445537821,3.99885245,192.8,192.67,2.68]
[1761445538015,3.99885245,192.79,192.67,2.68]
[1761445538220,3.99885245,192.78,192.67,2.68]
[1761445538520,3.99885245,192.77,192.67,2.68]
[1761445538720,3.99885245,192.8,192.67,2.68]
[1761445538920,3.99885245,192.79,192.67,2.68]
[1761445539121,3.99885245,192.78,192.67,2.68]
[1761445539321,3.99885245,192.77,192.67,2.68]
[1761445539524,3.99885245,192.8,192.67,2.68]
[1761445539716,3.99885245,192.79,192.67,2.68]
[1761445539917,3.99885245,192.78,192.67,2.68]
[1761445540212,3.99885245,192.77,192.67,2.68]
[1761445540417,3.99885245,192.8,192.67,2.68]
[1761445540615,3.99885245,192.79,192.67,2.68]
[1761445540829,3.99885245,192.78,192.67,2.68]
[1761445541123,3.99885245,192.77,192.67,2.68]
[1761445541319,3.99885245,192.8,192.67,2.68]
[1761445541530,3.99885245,192.79,192.67,2.68]
[1761445541718,3.99885245,192.78,192.67,2.68]
[1761445541918,3.99885245,192.8,192.67,2.68]
[1761445542119,3.99885245,192.79,192.67,2.68]
[1761445542314,3.99885245,192.78,192.67,2.68]
[1761445542516,3.99885245,192.78,192.66,4.6707]
[1761445542517,3.99885245,192.8,192.65,2.37040874]
[1761445542712,3.99885245,192.79,192.66,2.63]
[1761445542918,6.79251832,192.81,192.66,2.63]
[1761445543126,2.37040874,192.81,192.66,2.63]
[1761445543827,2.37040874,192.81,192.63,40.42]
[1761445543828,3.98049516,192.81,192.7,2.63]
[1761445544027,3.98049516,192.84,192.7,2.63]
[1761445544325,3.98049516,192.83,192.7,2.63]
[1761445544525,3.98049516,192.82,192.7,2.63]
[1761445544727,3.98049516,192.81,192.7,2.63]
[1761445544920,3.98049516,192.84,192.7,2.63]
[1761445545127,3.98049516,192.83,192.73,2.63]
[1761445545430,3.98049516,192.82,192.73,2.63]
[1761445545627,3.98049516,192.84,192.73,2.63]
[1761445545827,7.16680097,192.85,192.73,2.63]
[1761445545828,3.98049516,192.83,192.73,2.63]
[1761445546027,3.98049516,192.82,192.73,2.63]
[1761445546228,3.98049516,192.84,192.73,2.63]
[1761445546428,3.98049516,192.83,192.73,2.63]
[1761445546624,3.98049516,192.82,192.73,2.63]
[1761445546823,3.98049516,192.84,192.73,2.63]
[1761445547023,3.98049516,192.83,192.73,2.63]
[1761445547229,3.98049516,192.82,192.73,2.63]
[1761445547432,3.98049516,192.84,192.73,2.63]
[1761445547633,3.98049516,192.83,192.73,2.63]
[1761445547832,3.98049516,192.82,192.73,2.63]
[1761445548034,3.98049516,192.84,192.73,2.63]
[1761445548224,3.98049516,192.83,192.73,2.63]
[1761445548426,3.98049516,192.82,192.73,2.63]
[1761445548630,3.98049516,192.81,192.73,2.63]
[1761445548831,3.98049516,192.84,192.73,2.63]
[1761445549032,3.98049516,192.83,192.73,2.63]
[1761445549334,3.98049516,192.82,192.73,2.63]
[1761445549535,3.98049516,192.81,192.73,2.63]
[1761445549833,3.98049516,192.84,192.73,2.63]
[1761445550034,3.98049516,192.83,192.73,2.63]
[1761445550234,3.98049516,192.82,192.73,2.63]
[1761445550442,3.98049516,192.81,192.73,2.63]
[1761445550736,3.98049516,192.8,192.73,2.63]
[1761445550924,3.98049516,192.81,192.73,2.63]
[1761445551126,3.98049516,192.8,192.73,2.63]
[1761445551328,3.98049516,192.81,192.73,2.63]
[1761445551528,3.98049516,192.8,192.73,2.63]
[1761445551726,3.98049516,192.81,192.73,2.63]
[1761445551932,3.98049516,192.8,192.73,2.63]
[1761445552132,3.98049516,192.81,192.73,2.63]
[1761445552329,3.98049516,192.8,192.73,2.63]
[1761445552531,3.98049516,192.81,192.73,2.63]
[1761445552726,3.98049516,192.8,192.73,2.63]
[1761445552932,3.98049516,192.81,192.73,2.63]
[1761445553132,3.98049516,192.8,192.73,2.63]
[1761445553334,3.98049516,192.81,192.73,2.63]
[1761445553633,3.98049516,192.8,192.73,2.63]
[1761445553833,1.51522599,192.82,192.73,2.63]
[1761445554035,3.98638469,192.81,192.73,2.63]
[1761445554235,3.98638469,192.8,192.73,2.63]
[1761445554438,3.98638469,192.79,192.73,2.63]
[1761445554639,3.98638469,192.81,192.73,2.63]
[1761445554840,3.98638469,192.8,192.73,2.63]
[1761445555138,3.98638469,192.79,192.73,2.63]
[1761445555440,1.51522599,192.82,192.73,2.63]
[1761445555634,3.98863639,192.81,192.73,2.63]
[1761445555841,3.98863639,192.8,192.73,2.63]
[1761445556134,3.98863639,192.79,192.73,2.63]
[1761445556336,3.98818393,192.78,192.73,2.63]
[1761445556538,3.98818393,192.77,192.73,2.63]
[1761445556729,1.51522599,192.79,192.73,2.63]
[1761445557040,3.98957581,192.78,192.73,2.63]
[1761445557241,3.98957581,192.77,192.73,2.63]
[1761445557441,1.51522599,192.79,192.73,2.63]
[1761445557642,3.99017583,192.78,192.73,2.63]
[1761445557831,3.99017583,192.77,192.73,2.63]
[1761445558034,1.51522599,192.79,192.73,2.63]
[1761445558235,3.99017492,192.78,192.73,2.63]
[1761445558437,3.99017492,192.77,192.73,2.63]
[1761445558742,1.51522599,192.79,192.73,2.63]
[1761445558935,3.99028089,192.78,192.73,2.63]
[1761445559130,3.99028089,192.77,192.73,2.63]
[1761445559335,1.51522599,192.79,192.73,2.63]
[1761445559532,3.99027581,192.78,192.73,2.63]
[1761445559844,3.99027581,192.77,192.73,2.63]
[1761445560035,3.9902669,192.76,192.73,2.63]
[1761445560236,1.51522599,192.79,192.73,2.63]
[1761445560437,3.99029962,192.78,192.73,2.63]
[1761445560637,3.99029962,192.77,192.73,2.63]
[1761445560838,1.51522599,192.79,192.73,2.63]
[1761445561039,3.99029498,192.78,192.73,2.63]
[1761445561237,3.99029498,192.77,192.73,2.63]
[1761445561446,3.99044314,192.76,192.73,2.63]
[1761445561649,1.51522599,192.79,192.73,2.63]
[1761445561944,3.99044314,192.78,192.73,2.63]
[1761445562145,3.99044314,192.77,192.73,2.63]
[1761445562447,1.51522599,192.79,192.73,2.63]
[1761445562746,3.99075794,192.78,192.73,2.63]
[1761445562948,3.99075794,192.77,192.73,2.63]
[1761445563148,1.51522599,192.79,192.73,2.63]
[1761445563344,3.99063468,192.78,192.73,2.63]
[1761445563549,3.99063468,192.77,192.73,2.63]
[1761445563859,1.51522599,192.79,192.73,2.63]
[1761445564053,3.98960939,192.78,192.73,2.63]
[1761445564243,1.51522599,192.79,192.73,2.63]
[1761445564442,3.98987228,192.78,192.73,2.63]
[1761445564638,1.51522599,192.79,192.73,2.63]
[1761445564844,3.98975601,192.78,192.73,2.63]
[1761445565037,1.51522599,192.79,192.73,2.63]
[1761445565239,3.98975045,192.78,192.73,2.63]
[1761445565441,1.51522599,192.79,192.73,2.63]
[1761445565637,3.989841,192.78,192.73,2.63]
[1761445565840,1.51522599,192.79,192.73,2.63]
[1761445566040,3.98997088,192.78,192.73,2.63]
[1761445566244,1.51522599,192.79,192.73,2.63]
[1761445566451,3.9901262,192.78,192.73,2.63]
[1761445566646,1.51522599,192.79,192.73,2.63]
[1761445566847,3.99012617,192.78,192.73,2.63]
[1761445567145,1.51522599,192.79,192.73,2.63]
[1761445567348,3.99019668,192.78,192.73,2.63]
[1761445567548,1.51522599,192.79,192.73,2.63]
[1761445567847,3.9903809,192.78,192.73,2.63]
[1761445568047,1.51522599,192.79,192.73,2.63]
[1761445568251,3.99038093,192.78,192.73,2.63]
[1761445568452,1.51522599,192.79,192.73,2.63]
[1761445568653,3.99057133,192.78,192.73,2.63]
[1761445568851,1.51522599,192.79,192.73,2.63]
[1761445569051,3.99057133,192.78,192.73,2.63]
[1761445569249,1.51522599,192.79,192.73,2.63]
[1761445569457,3.990585,192.78,192.73,2.63]
[1761445569646,1.51522599,192.79,192.73,2.63]
[1761445569843,3.990585,192.78,192.73,2.63]
[1761445570041,1.51522599,192.79,192.73,2.63]
[1761445570244,3.99056721,192.78,192.73,2.63]
[1761445570441,1.51522599,192.79,192.73,2.63]
[1761445570645,3.99064631,192.78,192.73,2.63]
[1761445570854,1.51522599,192.79,192.73,2.63]
[1761445571055,3.99064631,192.78,192.73,2.63]
[1761445571352,1.51522599,192.79,192.73,2.63]
[1761445571554,3.99081525,192.78,192.73,2.63]
[1761445571759,1.51522599,192.79,192.73,2.63]
[1761445571957,3.99081525,192.78,192.73,2.63]
[1761445572256,3.99067322,192.77,192.73,2.63]
[1761445572444,1.51522599,192.79,192.73,2.63]
[1761445572645,3.99079289,192.78,192.73,2.63]
[1761445572853,3.99079289,192.77,192.73,2.63]
[1761445573056,1.51522599,192.79,192.73,2.63]
[1761445573252,3.99078972,192.78,192.73,2.63]
[1761445573452,3.99078972,192.77,192.73,2.63]
[1761445573652,1.51522599,192.79,192.73,2.63]
[1761445573849,3.99092273,192.78,192.73,2.63]
[1761445574153,3.99092273,192.77,192.73,2.63]
[1761445574353,1.51522599,192.79,192.73,2.63]
[1761445574653,3.99106527,192.78,192.73,2.63]
[1761445574853,3.99106527,192.77,192.73,2.63]
[1761445575150,1.51522599,192.79,192.73,2.63]
[1761445575351,3.99106527,192.78,192.73,2.63]
[1761445575547,1.51522599,192.76,192.71,2.87]
[1761445584653,3.9934032,192.75,192.71,2.87]
[1761445584858,1.51522599,192.76,192.71,2.87]
[1761445585058,3.9934032,192.75,192.71,2.87]
[1761445585260,1.51522599,192.76,192.71,2.87]
[1761445585561,3.99381483,192.75,192.71,2.87]
[1761445585762,1.51522599,192.76,192.71,2.87]
[1761445585959,3.99381483,192.75,192.71,2.87]
[1761445586159,1.51522599,192.76,192.71,2.87]
[1761445586462,3.99381483,192.75,192.71,2.87]
[1761445586767,1.51522599,192.76,192.71,2.87]
[1761445586963,3.99406818,192.75,192.71,2.87]
[1761445587161,1.51522599,192.76,192.71,2.87]
[1761445587356,3.99406818,192.75,192.71,2.87]
[1761445587561,1.51522599,192.76,192.71,2.87]
[1761445587861,3.99439275,192.75,192.71,2.87]
[1761445588065,1.51522599,192.76,192.71,2.87]
[1761445588262,3.994366,192.75,192.71,2.87]
[1761445588564,3.99407035,192.74,192.71,2.87]
[1761445588763,1.51522599,192.76,192.68,2.87]
[1761445588956,3.99406387,192.75,192.68,2.87]
[1761445589156,3.99406387,192.74,192.68,2.87]
[1761445589354,1.51522599,192.76,192.68,2.87]
[1761445589559,3.99355878,192.75,192.68,2.87]
[1761445589765,3.99355878,192.74,192.68,2.87]
[1761445589965,1.51522599,192.76,192.68,2.87]
[1761445590160,3.99361956,192.75,192.68,2.87]
[1761445590466,3.99361956,192.74,192.68,2.87]
[1761445590666,1.51522599,192.76,192.68,2.87]
[1761445590857,3.99319447,192.75,192.68,2.87]
[1761445591054,3.99319447,192.74,192.68,2.87]
[1761445591257,1.51522599,192.76,192.68,2.87]
[1761445591459,3.99289697,192.75,192.68,2.87]
[1761445591658,3.99289697,192.74,192.68,2.87]
[1761445591964,1.51522599,192.76,192.68,2.87]
[1761445592160,3.99289697,192.75,192.68,2.87]
[1761445592365,3.99289697,192.74,192.68,2.87]
[1761445592665,3.99247223,192.73,192.68,2.87]
[1761445592963,1.51522599,192.76,192.68,2.87]
[1761445593160,3.99253116,192.75,192.68,2.87]
[1761445593464,3.99253116,192.74,192.68,2.87]
[1761445593764,3.99253116,192.73,192.68,2.87]
[1761445593965,1.51522599,192.76,192.68,2.87]
[1761445594260,4.00909938,192.75,192.68,2.87]
[1761445594465,1.51522599,192.73,192.68,2.87]
[1761445611980,6.31161822,192.77,192.68,2.87]
[1761445612180,4.00478192,192.76,192.68,2.87]
[1761445612381,4.00478192,192.75,192.68,2.87]
[1761445612577,4.00478192,192.74,192.68,2.87]
[1761445612777,4.42333614,192.78,192.68,2.87]
[1761445612976,4.00539763,192.77,192.68,2.87]
[1761445613177,4.00539763,192.76,192.68,2.87]
[1761445613371,4.00539763,192.75,192.68,2.87]
[1761445613684,4.00539763,192.74,192.68,2.87]
[1761445613883,4.42333614,192.78,192.68,2.87]
[1761445614084,4.00584692,192.77,192.68,2.87]
[1761445614285,4.00584692,192.76,192.68,2.87]
[1761445614484,4.00584692,192.75,192.68,2.87]
[1761445614684,4.00584692,192.74,192.68,2.87]
[1761445614885,4.42333614,192.78,192.68,2.87]
[1761445615086,4.00600805,192.77,192.68,2.87]
[1761445615287,4.00600805,192.76,192.68,2.87]
[1761445615485,4.00600805,192.75,192.68,2.87]
[1761445615783,4.00600805,192.74,192.68,2.87]
[1761445615986,4.79639223,192.78,192.68,2.87]
[1761445616290,4.00638392,192.77,192.68,2.87]
[1761445616490,4.00638392,192.76,192.68,2.87]
[1761445616789,4.00638392,192.75,192.68,2.87]
[1761445616985,4.00638392,192.74,192.68,2.87]
[1761445617188,4.79639223,192.78,192.68,2.87]
[1761445617491,4.00689166,192.77,192.68,2.87]
[1761445617691,4.00689166,192.76,192.68,2.87]
[1761445617878,4.00689166,192.75,192.68,2.87]
[1761445618082,4.00689166,192.74,192.68,2.87]
[1761445618286,4.00689166,192.73,192.68,2.87]
[1761445618488,4.42536643,192.77,192.68,2.87]
[1761445618689,4.00713656,192.76,192.68,2.87]
[1761445618884,4.00713656,192.75,192.68,2.87]
[1761445619084,4.00713656,192.74,192.68,2.87]
[1761445619286,4.00713656,192.73,192.68,2.87]
[1761445619484,4.42536643,192.77,192.68,2.87]
[1761445619684,4.00747622,192.76,192.68,2.87]
[1761445619892,4.00747622,192.75,192.68,2.87]
[1761445620092,4.00747622,192.74,192.68,2.87]
[1761445620290,4.00747622,192.73,192.68,2.87]
[1761445620486,4.00747622,192.72,192.68,2.87]
[1761445620692,11.59066957,192.76,192.68,2.87]
[1761445620891,4.00681244,192.75,192.68,2.87]
[1761445621091,4.00681244,192.74,192.68,2.87]
[1761445621287,4.00681244,192.73,192.68,2.87]
[1761445621491,4.00681244,192.72,192.68,2.87]
[1761445621686,4.00681244,192.71,192.68,2.87]